bitfinex/quotes_BTCUSD_20251012
["timestamp","ask_amount","ask_price","bid_price","bid_amount"]
[1760243692521,0.04710371,111580.0,111570.0,0.28081198]
[1760243693535,0.25437281,111580.0,111570.0,0.07140043]
[1760243693739,0.2263473,111580.0,111570.0,0.03888043]
[1760243693917,0.2263473,111580.0,111570.0,0.21814008]
[1760243694123,0.2263473,111580.0,111570.0,0.03888043]
[1760243694272,0.2263473,111580.0,111570.0,0.00115043]
[1760243694478,0.27229717,111580.0,111570.0,0.00115043]
[1760243696623,0.27229717,111580.0,111570.0,0.00015043]
[1760243696883,0.27229717,111580.0,111570.0,0.00115043]
[1760243699349,0.2263473,111580.0,111570.0,0.00115043]
[1760243700627,0.5663473,111580.0,111570.0,0.00115043]
[1760243701770,0.5663873,111580.0,111570.0,0.00015043]
[1760243701974,0.5673873,111580.0,111570.0,0.00015043]
[1760243702392,0.57572427,111580.0,111570.0,0.00015043]
[1760243702825,0.65930888,111580.0,111570.0,0.00015043]
[1760243704970,0.68628194,111580.0,111570.0,0.00015043]
[1760243705432,0.17930787,111540.0,111530.0,0.03868187]
[1760243705569,0.17930787,111540.0,111530.0,0.03883188]
[1760243705777,0.17930787,111540.0,111530.0,0.00111188]
[1760243705987,0.21516784,111540.0,111530.0,0.00111188]
[1760243706189,0.55516784,111540.0,111530.0,0.00111188]
[1760243706990,0.55516784,111540.0,111530.0,0.00211188]
[1760243707235,0.55516784,111540.0,111530.0,0.00111188]
[1760243708394,0.52030787,111540.0,111530.0,0.00111188]
[1760243710612,0.51930787,111540.0,111530.0,0.00111188]
[1760243710829,0.52030787,111540.0,111530.0,0.00111188]
[1760243711336,0.51930787,111540.0,111530.0,0.00111188]
[1760243711704,0.52030787,111540.0,111530.0,0.00111188]
[1760243712045,0.5930243,111540.0,111530.0,0.00111188]
[1760243713162,0.60139179,111540.0,111530.0,0.00111188]
[1760243713361,0.60139122,111540.0,111530.0,0.00111188]
[1760243714093,0.17934002,111520.0,111510.0,0.03772]
[1760243714305,0.17934002,111520.0,111510.0,0.03822032]
[1760243714306,0.21520776,111520.0,111510.0,0.03822032]
[1760243714515,0.21520776,111520.0,111510.0,0.03938959]
[1760243715927,0.17934002,111520.0,111510.0,0.03938959]
[1760243716869,0.17934002,111520.0,111510.0,0.04038959]
[1760243717277,0.17934002,111520.0,111510.0,0.03938959]
[1760243717514,0.17934002,111520.0,111510.0,0.04038959]
[1760243718603,0.51934002,111520.0,111510.0,0.04038959]
[1760243718852,0.59190632,111520.0,111510.0,0.04038959]
[1760243719179,0.59190632,111520.0,111510.0,0.00266959]
[1760243719410,0.60026343,111520.0,111510.0,0.00266959]
[1760243719669,0.60026343,111520.0,111510.0,1e-08]
[1760243719670,0.61697859,111520.0,111510.0,1e-08]
[1760243719819,0.61797859,111520.0,111510.0,1e-08]
[1760243720221,0.17940437,111480.0,111470.0,0.12486362]
[1760243720524,0.17940169,111490.0,111470.0,0.35836407]
[1760243720812,0.17940169,111490.0,111480.0,0.01552]
[1760243720996,0.17940169,111490.0,111480.0,0.03644]
[1760243722672,0.18836451,111500.0,111480.0,0.2667948]
[1760243722897,0.17937716,111500.0,111490.0,0.2279028]
[1760243723081,0.17937716,111500.0,111490.0,0.2488228]
[1760243723616,0.17937716,111500.0,111490.0,0.06945]
[1760243724136,0.17938828,111490.0,111480.0,0.20389458]
[1760243724355,0.18830362,111530.0,111480.0,0.20389458]
[1760243724356,0.18829607,111550.0,111530.0,0.17931899]
[1760243724535,0.21337127,111550.0,111530.0,0.21575899]
[1760243724741,0.2606987,111550.0,111530.0,0.24877394]
[1760243724949,0.2439819,111550.0,111530.0,0.24877394]
[1760243725143,0.24398212,111550.0,111530.0,0.24877394]
[1760243725350,0.17930787,111540.0,111530.0,0.03644]
[1760243725571,0.17930787,111540.0,111530.0,0.03694083]
[1760243725925,0.22080101,111540.0,111530.0,0.03694083]
[1760243726474,0.04149314,111540.0,111530.0,0.24927477]
[1760243726948,0.04149314,111540.0,111530.0,0.25027477]
[1760243727156,0.17930787,111540.0,111530.0,0.24927477]
[1760243727602,0.22661922,111550.0,111540.0,0.17930787]
[1760243727807,0.56661922,111550.0,111540.0,0.03644]
[1760243728017,0.38732743,111550.0,111540.0,0.21574787]
[1760243728232,0.179299,111570.0,111550.0,0.17929179]
[1760243728436,0.179299,111570.0,111550.0,0.03644]
[1760243728437,0.17927572,111560.0,111550.0,0.03644]
[1760243728649,0.18764133,111560.0,111550.0,0.03644]
[1760243728851,0.17927572,111560.0,111550.0,0.03644]
[1760243729056,0.21602949,111560.0,111550.0,0.03644]
[1760243729259,0.03675377,111560.0,111550.0,0.21573179]
[1760243729466,0.5282253,111570.0,111550.0,0.21573179]
[1760243729658,0.17927572,111560.0,111550.0,0.03644]
[1760243730396,0.18027572,111560.0,111550.0,0.03644]
[1760243732669,0.17930787,111540.0,111530.0,0.01602083]
[1760243732820,0.17930787,111540.0,111530.0,0.21560477]
[1760243733247,0.17929179,111550.0,111530.0,0.24660477]
[1760243733464,0.21614492,111550.0,111540.0,0.01518]
[1760243733674,0.18137105,111560.0,111540.0,0.24341865]
[1760243733903,0.18200702,111550.0,111540.0,0.22548787]
[1760243734105,0.18200702,111550.0,111540.0,0.24574787]
[1760243734765,0.18200702,111550.0,111540.0,0.06644]
[1760243734994,0.18200702,111550.0,111540.0,0.08437078]
[1760243735600,0.18200702,111550.0,111540.0,0.03544]
[1760243736585,0.18200702,111550.0,111530.0,0.04702083]
[1760243736586,0.17930787,111540.0,111530.0,0.04702083]
[1760243736798,0.17930787,111540.0,111530.0,0.00050083]
[1760243737389,0.17930787,111540.0,111530.0,0.21526477]
[1760243737786,0.17930787,111540.0,111530.0,0.21626477]
[1760243738109,0.17930787,111540.0,111530.0,0.00150083]
[1760243739520,0.51930787,111540.0,111530.0,0.00150083]
[1760243739704,0.59754127,111540.0,111530.0,0.00150083]
[1760243739909,0.59754127,111540.0,111530.0,0.00050083]
[1760243741158,0.58917184,111540.0,111530.0,0.00050083]
[1760243741366,0.59754139,111540.0,111530.0,0.00050083]
[1760243742071,0.59967233,111540.0,111530.0,0.00050083]
[1760243742396,0.52143881,111540.0,111530.0,0.00050083]
[1760243744653,0.52980831,111540.0,111530.0,0.00050083]
[1760243745989,0.53080831,111540.0,111530.0,0.00050083]
[1760243748560,0.34480934,111540.0,111530.0,0.00050083]
[1760243748705,0.52411721,111540.0,111530.0,0.00050083]
[1760243748905,0.59446211,111540.0,111530.0,0.00050083]
[1760243749349,0.52411721,111540.0,111530.0,0.00050083]
[1760243751446,0.52412458,111540.0,111530.0,0.00050083]
[1760243752084,0.51574771,111540.0,111530.0,0.00050083]
[1760243752291,0.5241281,111540.0,111530.0,0.00050083]
[1760243752707,0.51574771,111540.0,111530.0,0.00050083]
[1760243753793,0.58525566,111540.0,111530.0,0.00050083]
[1760243753970,0.58425566,111540.0,111530.0,0.00050083]
[1760243754173,0.58525566,111540.0,111530.0,0.00050083]
[1760243763050,0.59364882,111540.0,111530.0,0.00050083]
[1760243763267,0.59364882,111540.0,111500.0,0.00058474]
[1760243763268,0.17935611,111510.0,111500.0,0.00058474]
[1760243763471,0.17935611,111510.0,111500.0,0.00108608]
[1760243763678,0.51935611,111510.0,111500.0,0.00108608]
[1760243764936,0.51938828,111490.0,111480.0,0.03772]
[1760243765162,0.51938828,111490.0,111480.0,0.00050193]
[1760243765977,0.17938828,111490.0,111480.0,0.00050193]
[1760243766633,0.17938828,111490.0,111480.0,0.00150193]
[1760243767576,0.17938828,111490.0,111480.0,0.00250193]
[1760243769086,0.17942828,111490.0,111480.0,0.00250193]
[1760243774390,0.17942828,111490.0,111480.0,0.00367168]
[1760243777569,0.24930967,111490.0,111480.0,0.00367168]
[1760243778794,0.17942828,111490.0,111480.0,0.00367168]
[1760243782015,0.51942828,111490.0,111480.0,1.68e-06]
[1760243782473,0.54958018,111490.0,111480.0,1.68e-06]
[1760243782899,0.56633756,111490.0,111480.0,1.68e-06]
[1760243783120,0.64610951,111490.0,111480.0,1.68e-06]
[1760243783541,0.64710951,111490.0,111480.0,1.68e-06]
[1760243783965,0.64610951,111490.0,111480.0,1.68e-06]
[1760243784179,0.64710951,111490.0,111480.0,1.68e-06]
[1760243784382,0.64910951,111490.0,111480.0,1.68e-06]
[1760243785212,0.56933756,111490.0,111480.0,1.68e-06]
[1760243787178,0.57772087,111490.0,111480.0,1.68e-06]
[1760243788228,0.59703856,111490.0,111480.0,1.68e-06]
[1760243790732,0.62403743,111490.0,111480.0,1.68e-06]
[1760243790901,4.70526342,111490.0,111480.0,1.68e-06]
[1760243791102,4.79398276,111490.0,111480.0,1.68e-06]
[1760243791757,4.81808452,111490.0,111480.0,1.68e-06]
[1760243794205,4.85049893,111490.0,111480.0,1.68e-06]
[1760243794416,0.79427293,111490.0,111480.0,1.68e-06]
[1760243794621,4.95049892,111490.0,111480.0,1.68e-06]
[1760243794829,4.92639716,111490.0,111480.0,1.68e-06]
[1760243795220,4.97501878,111490.0,111480.0,1.68e-06]
[1760243795453,4.9890894,111490.0,111480.0,1.68e-06]
[1760243795804,0.9328634,111490.0,111480.0,1.68e-06]
[1760243796005,4.9890894,111490.0,111480.0,1.68e-06]
[1760243797767,0.9328634,111490.0,111480.0,1.68e-06]
[1760243797966,4.9890894,111490.0,111480.0,1.68e-06]
[1760243798581,0.9328634,111490.0,111480.0,1.68e-06]
[1760243798804,4.9890894,111490.0,111480.0,1.68e-06]
[1760243799605,0.9328634,111490.0,111480.0,1.68e-06]
[1760243799837,1.3702634,111490.0,111480.0,1.68e-06]
[1760243800009,0.17943656,111460.0,111450.0,0.35179341]
[1760243800246,0.21850914,111460.0,111450.0,0.35179341]
[1760243800449,0.19669468,111460.0,111450.0,0.35179341]
[1760243801283,0.19769468,111460.0,111450.0,0.35179341]
[1760243802263,0.22071804,111460.0,111450.0,0.35179341]
[1760243802638,0.20396066,111460.0,111450.0,0.35179341]
[1760243803251,0.22073838,111460.0,111450.0,0.35179341]
[1760243803453,0.26075661,111460.0,111450.0,0.35179341]
[1760243803672,0.21978283,111460.0,111450.0,0.35179341]
[1760243804084,0.21978269,111460.0,111450.0,0.35179341]
[1760243805556,0.21978269,111460.0,111450.0,0.35354865]
[1760243809771,0.21978269,111460.0,111450.0,0.37460865]
[1760243810011,0.21978269,111460.0,111450.0,0.35354865]
[1760243813648,0.25970435,111460.0,111450.0,0.35354865]
[1760243815285,0.21978269,111460.0,111450.0,0.35354865]
[1760243824391,0.21978269,111460.0,111450.0,0.42083865]
[1760243824595,0.20300368,111460.0,111450.0,0.42083865]
[1760243824801,0.20300368,111460.0,111450.0,0.38921865]
[1760243825411,0.20300368,111460.0,111450.0,0.36945865]
[1760243825621,0.20300368,111460.0,111450.0,0.35354865]
[1760243825837,0.21984337,111460.0,111450.0,0.35354865]
[1760243826251,0.21984337,111460.0,111450.0,0.37330865]
[1760243826448,0.20300368,111460.0,111450.0,0.37330865]
[1760243826855,0.20300368,111460.0,111450.0,0.35354865]
[1760243827062,0.21984299,111460.0,111450.0,0.37330865]
[1760243827277,0.20300368,111460.0,111450.0,0.37330865]
[1760243827837,0.20300368,111460.0,111450.0,0.38921865]
[1760243834973,0.20300368,111460.0,111450.0,0.35354865]
[1760243835413,0.20300368,111460.0,111450.0,0.37330865]
[1760243835613,0.20300368,111460.0,111450.0,0.35354865]
[1760243835839,0.20304368,111460.0,111450.0,0.35354865]
[1760243836364,0.20304368,111460.0,111450.0,0.37330865]
[1760243836645,0.20304368,111460.0,111450.0,0.36945865]
[1760243836809,0.20304368,111460.0,111450.0,0.35354865]
[1760243839703,0.20304368,111460.0,111450.0,0.37330865]
[1760243839914,0.0245641,111460.0,111450.0,0.60029131]
[1760243840978,0.0235641,111460.0,111450.0,0.60029131]
[1760243841598,0.0235641,111460.0,111450.0,0.60129131]
[1760243842056,0.21539434,111480.0,111450.0,0.60129131]
[1760243842268,0.17942191,111470.0,111460.0,0.03385365]
[1760243842478,0.2064158,111470.0,111460.0,0.08523365]
[1760243843336,0.2064158,111470.0,111460.0,0.26584026]
[1760243843553,0.2064158,111470.0,111460.0,0.24789661]
[1760243843758,0.2064158,111470.0,111460.0,0.24889661]
[1760243844176,0.22931552,111470.0,111460.0,0.24889661]
[1760243844377,0.22931552,111470.0,111460.0,0.03784005]
[1760243844526,0.22931552,111470.0,111460.0,0.0874037]
[1760243846771,0.0424692,111470.0,111460.0,0.0874037]
[1760243847222,0.0424692,111470.0,111460.0,0.26684026]
[1760243847427,0.0424692,111470.0,111460.0,0.24889661]
[1760243848036,0.0425092,111470.0,111460.0,0.24889661]
[1760243848499,0.22192967,111470.0,111460.0,0.24889661]
[1760243849869,0.22192967,111470.0,111460.0,0.03784005]
[1760243850216,0.22192967,111470.0,111460.0,0.26684026]
[1760243850506,0.22192967,111470.0,111460.0,0.24889661]
[1760243851632,0.22192967,111470.0,111460.0,0.06946005]
[1760243851825,0.22192967,111470.0,111460.0,0.0874037]
[1760243852969,0.22192967,111470.0,111460.0,0.0557837]
[1760243853199,0.04097341,111470.0,111460.0,0.0873037]
[1760243854040,0.04097341,111470.0,111460.0,0.06936005]
[1760243854225,0.04097341,111470.0,111460.0,0.00217005]
[1760243854864,0.06797009,111470.0,111460.0,0.00217005]
[1760243855432,0.06897009,111470.0,111460.0,0.00217005]
[1760243855631,0.06897009,111470.0,111460.0,0.00117005]
[1760243856651,0.09202139,111470.0,111460.0,0.00117005]
[1760243857858,0.23046845,111470.0,111460.0,0.05301005]
[1760243858106,0.20347177,111470.0,111460.0,0.0875937]
[1760243858276,0.20347177,111470.0,111460.0,0.03813005]
[1760243858469,0.20347177,111470.0,111460.0,0.06965005]
[1760243858907,0.20247177,111470.0,111460.0,0.06965005]
[1760243859134,0.20247177,111470.0,111460.0,0.24908661]
[1760243859339,0.20247177,111470.0,111460.0,0.06965005]
[1760243861003,0.20247177,111470.0,111460.0,0.03813005]
[1760243861643,0.20247177,111470.0,111460.0,0.06897005]
[1760243862698,0.54247177,111470.0,111460.0,0.06897005]
[1760243865371,0.0230513,111470.0,111460.0,0.26635026]
[1760243865574,0.0230513,111470.0,111460.0,0.24940661]
[1760243866426,4e-05,111470.0,111460.0,0.24940661]
[1760243866654,4e-05,111470.0,111460.0,0.69169823]
[1760243866863,4e-05,111470.0,111460.0,0.72185013]
[1760243867076,4e-05,111470.0,111460.0,0.7859411]
[1760243867336,4e-05,111470.0,111460.0,1.22823272]
[1760243867547,0.0010024,111490.0,111480.0,0.17940437]
[1760243867770,0.0010024,111490.0,111480.0,0.19617437]
[1760243867983,0.0010024,111490.0,111480.0,0.21746437]
[1760243868188,0.0010024,111490.0,111480.0,0.24830437]
[1760243868395,0.3410024,111490.0,111480.0,0.24830437]
[1760243869215,0.3410024,111490.0,111480.0,0.24930437]
[1760243869426,0.3410024,111490.0,111480.0,0.25030437]
[1760243876435,0.52039068,111490.0,111480.0,0.0709]
[1760243877363,0.52039068,111490.0,111480.0,0.01877]
[1760243877579,0.52039068,111490.0,111480.0,0.01777]
[1760243878032,0.54737913,111490.0,111480.0,0.001]
[1760243879162,0.54737913,111490.0,111470.0,0.01735497]
[1760243879163,0.51940437,111480.0,111470.0,0.01735497]
[1760243879381,0.51940437,111480.0,111470.0,0.03864497]
[1760243880253,0.51940437,111480.0,111470.0,0.00058497]
[1760243881109,0.51940437,111480.0,111470.0,0.00158497]
[1760243881337,0.59208272,111480.0,111470.0,0.00158497]
[1760243881549,0.51940437,111480.0,111470.0,0.00158497]
[1760243882409,0.51940437,111480.0,111470.0,0.06899497]
[1760243882649,0.51940437,111480.0,111470.0,0.03830497]
[1760243882861,0.52040437,111480.0,111470.0,0.03830497]
[1760243883902,0.52040437,111480.0,111470.0,0.03730497]
[1760243884108,0.52040437,111480.0,111470.0,0.00058497]
[1760243884318,0.52040437,111480.0,111470.0,0.02184497]
[1760243885461,0.52040437,111480.0,111470.0,0.00058497]
[1760243886844,0.54739874,111480.0,111470.0,0.00058497]
[1760243887472,0.54739874,111480.0,111470.0,0.05253497]
[1760243887711,0.54739874,111480.0,111470.0,0.06799497]
[1760243887916,0.54739874,111480.0,111470.0,0.0927381]
[1760243888557,0.54739874,111480.0,111470.0,0.06799497]
[1760243888767,0.54739874,111480.0,111470.0,0.03730497]
[1760243888768,0.54639874,111480.0,111470.0,0.03730497]
[1760243888995,0.54639874,111480.0,111470.0,0.00058497]
[1760243890404,0.54639874,111480.0,111470.0,0.02184497]
[1760243891033,0.54639874,111480.0,111470.0,0.00058497]
[1760243891406,0.56975091,111480.0,111470.0,0.00058497]
[1760243892493,0.57075091,111480.0,111470.0,0.00058497]
[1760243892694,0.54739874,111480.0,111470.0,0.00058497]
[1760243893129,0.54743874,111480.0,111470.0,0.00058497]
[1760243901172,0.18044437,111480.0,111470.0,0.06799497]
[1760243901306,0.18044437,111480.0,111470.0,0.24741544]
[1760243901506,0.52044437,111480.0,111470.0,0.24741544]
[1760243901720,0.00104,111480.0,111470.0,0.24741544]
[1760243901937,4e-05,111480.0,111470.0,0.24741544]
[1760243902559,0.34004,111480.0,111470.0,0.24741544]
[1760243902768,4e-05,111480.0,111470.0,0.24741544]
[1760243903781,4e-05,111480.0,111470.0,0.24841544]
[1760243904053,4e-05,111480.0,111470.0,0.24741544]
[1760243904196,4e-05,111480.0,111470.0,0.24841544]
[1760243904384,4e-05,111480.0,111470.0,0.24941544]
[1760243910009,4e-05,111480.0,111470.0,0.69147634]
[1760243910430,4e-05,111480.0,111470.0,0.24941544]
[1760243915016,4e-05,111480.0,111470.0,0.28713544]
[1760243920218,0.17944437,111480.0,111470.0,0.10771497]
[1760243920421,0.17944437,111480.0,111470.0,0.07702497]
[1760243920422,0.51944437,111480.0,111470.0,0.07702497]
[1760243920741,0.51944437,111480.0,111470.0,0.10851497]
[1760243920938,0.51944437,111480.0,111470.0,0.28793544]
[1760243921140,0.51944437,111480.0,111470.0,0.10851497]
[1760243922024,0.51944437,111480.0,111470.0,0.10751497]
[1760243922240,0.51944437,111480.0,111470.0,0.28693544]
[1760243923155,0.34004,111480.0,111470.0,0.28693544]
[1760243924331,0.51944437,111480.0,111470.0,0.28693544]
[1760243926610,0.34004,111480.0,111470.0,0.28693544]
[1760243927852,0.51944437,111480.0,111470.0,0.10751497]
[1760243929032,0.51944437,111480.0,111470.0,0.28693544]
[1760243929219,0.34004,111480.0,111470.0,0.28693544]
[1760243932514,0.18039205,111490.0,111480.0,0.17940437]
[1760243932710,0.0010024,111490.0,111480.0,0.24810437]
[1760243933476,0.18834711,111500.0,111480.0,0.24810437]
[1760243933684,0.18834711,111500.0,111490.0,0.06538882]
[1760243934110,0.18834711,111500.0,111490.0,0.08663882]
[1760243934313,0.18834711,111500.0,111490.0,0.2660271]
[1760243934525,0.3489286,111500.0,111490.0,0.24808828]
[1760243934746,0.52830079,111500.0,111490.0,0.24808828]
[1760243934959,0.52830079,111500.0,111490.0,0.24813825]
[1760243935794,0.52930079,111500.0,111490.0,0.06874997]
[1760243936010,0.52930079,111500.0,111490.0,0.08668879]
[1760243936155,0.56503299,111500.0,111490.0,0.08668879]
[1760243936657,0.56503299,111500.0,111490.0,0.08768879]
[1760243939358,0.56561777,111500.0,111490.0,0.08768879]
[1760243942267,0.37731698,111500.0,111490.0,0.26707707]
[1760243942481,0.55668917,111500.0,111490.0,0.06974997]
[1760243942705,0.55668917,111500.0,111490.0,0.08768879]
[1760243943795,0.55668917,111500.0,111490.0,0.12540879]
[1760243944002,0.55668917,111500.0,111490.0,0.10746997]
[1760243944413,0.55668917,111500.0,111490.0,0.30479707]
[1760243944626,0.55668917,111500.0,111490.0,0.28685825]
[1760243944885,0.37731698,111500.0,111490.0,0.28685825]
[1760243945100,0.00058478,111500.0,111490.0,0.31701015]
[1760243945764,0.00058478,111500.0,111490.0,0.75907105]
[1760243946612,0.00058478,111500.0,111490.0,0.75807105]
[1760243947038,0.00058478,111500.0,111490.0,0.31601015]
[1760243947879,0.00058478,111500.0,111490.0,0.31701015]
[1760243948094,0.00058478,111500.0,111490.0,0.28785825]
[1760243949284,0.00058478,111500.0,111490.0,0.28585825]
[1760243949525,0.00058478,111500.0,111490.0,0.28685825]
[1760243949647,0.00058478,111500.0,111490.0,0.28785825]
[1760243949870,0.17995697,111500.0,111490.0,0.28785825]
[1760243951899,0.51995697,111500.0,111490.0,0.07683997]
[1760243952590,0.51995697,111500.0,111490.0,0.07583997]
[1760243952797,0.51995697,111500.0,111490.0,0.10832997]
[1760243953242,0.51995697,111500.0,111490.0,0.10732997]
[1760243953443,0.51995697,111500.0,111490.0,0.28671825]
[1760243953862,0.51995697,111500.0,111490.0,0.10732997]
[1760243954670,0.51995697,111500.0,111490.0,0.07583997]
[1760243955049,0.51995697,111500.0,111490.0,0.03876997]
[1760243955468,0.59354395,111500.0,111490.0,0.03876997]
[1760243955649,0.51995697,111500.0,111490.0,0.03876997]
[1760243956500,0.51995697,111500.0,111490.0,0.03776997]
[1760243958253,0.52095697,111500.0,111490.0,0.03776997]
[1760243959415,0.52095697,111500.0,111490.0,0.05898997]
[1760243959656,0.52095697,111500.0,111490.0,0.03776997]
[1760243959891,0.52095697,111500.0,111490.0,0.10702997]
[1760243961088,0.52095697,111500.0,111490.0,0.07453997]
[1760243961334,0.51995697,111500.0,111490.0,0.07453997]
[1760243961569,0.52095697,111500.0,111490.0,0.07453997]
[1760243962046,0.51995697,111500.0,111490.0,0.07453997]
[1760243962295,0.51995697,111500.0,111490.0,0.03776997]
[1760243963281,0.51995697,111500.0,111490.0,0.05898997]
[1760243963482,0.51995697,111500.0,111490.0,0.10702997]
[1760243963684,0.51995697,111500.0,111490.0,0.03776997]
[1760243964290,0.51995697,111500.0,111490.0,0.05898997]
[1760243965405,0.51995697,111500.0,111490.0,0.03776997]
[1760243965955,0.51995697,111500.0,111490.0,0.05898997]
[1760243966383,0.51995697,111500.0,111490.0,0.07453997]
[1760243966728,0.51995697,111500.0,111490.0,0.03776997]
[1760243967564,0.51995697,111500.0,111490.0,0.05898997]
[1760243971540,0.51995697,111500.0,111490.0,0.03776997]
[1760243972634,0.51995697,111500.0,111490.0,4.997e-05]
[1760243974300,0.56173268,111500.0,111490.0,4.997e-05]
[1760243974727,0.51995697,111500.0,111490.0,4.997e-05]
[1760243976348,0.51995697,111500.0,111490.0,0.02172997]
[1760243976558,0.51995697,111500.0,111490.0,0.03799997]
[1760243976784,0.51995697,111500.0,111490.0,0.07007997]
[1760243977419,0.51995697,111500.0,111490.0,0.03799997]
[1760243977861,0.51995697,111500.0,111490.0,0.07007997]
[1760243982576,0.51995697,111500.0,111490.0,0.03799997]
[1760243984231,0.51995697,111500.0,111490.0,4.997e-05]
[1760243984358,0.59624285,111500.0,111490.0,4.997e-05]
[1760243984559,0.51995697,111500.0,111490.0,4.997e-05]
[1760243986075,0.54694683,111500.0,111490.0,4.997e-05]
[1760243993586,0.53152406,111500.0,111490.0,4.997e-05]
[1760243996223,0.53152406,111500.0,111490.0,0.02100997]
[1760243996630,0.53152406,111500.0,111490.0,0.03572997]
[1760243996826,0.53152406,111500.0,111490.0,0.06613997]
[1760243997211,0.53152406,111500.0,111490.0,0.03572997]
[1760243997947,0.53152406,111500.0,111490.0,0.06613997]
[1760243998533,0.53152406,111500.0,111490.0,0.07443221]
[1760243998738,0.53152406,111500.0,111490.0,0.06613997]
[1760244000347,0.53152406,111500.0,111490.0,0.03572997]
[1760244000578,0.53152406,111500.0,111490.0,0.01476997]
[1760244000794,0.53152406,111500.0,111490.0,0.06697997]
[1760244001210,0.53152406,111500.0,111490.0,0.24636825]
[1760244001381,0.5045342,111500.0,111490.0,0.24636825]
[1760244001593,0.32516201,111500.0,111490.0,0.24636825]
[1760244001805,0.5828929,111510.0,111500.0,0.17937219]
[1760244002002,0.17937219,111500.0,111490.0,0.19415825]
[1760244002410,0.17937219,111500.0,111490.0,0.21447825]
[1760244002643,0.17937219,111500.0,111490.0,0.24672825]
[1760244005195,0.17937219,111500.0,111490.0,0.06733997]
[1760244006591,0.17937219,111500.0,111490.0,0.00104997]
[1760244007274,0.25559882,111500.0,111490.0,0.00104997]
[1760244007492,0.17937219,111500.0,111490.0,0.0020123]
[1760244007699,0.20636243,111500.0,111490.0,0.0020123]
[1760244008556,0.20636243,111500.0,111490.0,0.0010123]
[1760244008968,0.20736243,111500.0,111490.0,0.0010123]
[1760244011127,0.20736243,111500.0,111490.0,0.0213323]
[1760244011363,0.20736243,111500.0,111490.0,0.0677923]
[1760244011815,0.20736243,111500.0,111490.0,0.0365423]
[1760244012671,0.20736243,111500.0,111490.0,0.0162223]
[1760244012881,0.20736243,111500.0,111490.0,0.0010123]
[1760244013555,0.20736243,111500.0,111490.0,0.0677923]
[1760244013991,0.20736243,111500.0,111490.0,0.0365423]
[1760244014944,0.20736243,111500.0,111490.0,0.0677923]
[1760244015373,0.20736243,111500.0,111490.0,0.0365423]
[1760244019040,0.20736243,111500.0,111490.0,0.0162223]
[1760244019251,0.20736243,111500.0,111490.0,0.0365423]
[1760244019496,0.20736243,111500.0,111490.0,0.0010123]
[1760244022653,0.20736243,111500.0,111490.0,0.0365423]
[1760244023083,0.20736243,111500.0,111490.0,0.0677923]
[1760244024509,0.20636243,111500.0,111490.0,0.0677923]
[1760244024719,0.20636243,111500.0,111490.0,0.0365423]
[1760244025739,0.02699024,111500.0,111490.0,0.0010123]
[1760244025985,0.20636243,111500.0,111490.0,0.0010123]
[1760244026602,0.20636243,111500.0,111490.0,0.0677923]
[1760244026804,0.20636243,111500.0,111490.0,0.0365423]
[1760244028161,0.20636243,111500.0,111490.0,0.0010123]
[1760244030255,0.20636243,111500.0,111490.0,0.0213323]
[1760244030901,0.20636243,111500.0,111490.0,0.0010123]
[1760244031106,0.20736243,111500.0,111490.0,0.0010123]
[1760244031528,0.20636243,111500.0,111490.0,0.0010123]
[1760244031735,0.20636243,111500.0,111490.0,0.0221323]
[1760244031960,0.20736243,111500.0,111490.0,0.0221323]
[1760244032137,0.20736243,111500.0,111490.0,0.0370623]
[1760244032363,0.20736243,111500.0,111490.0,0.0010123]
[1760244035833,0.54736243,111500.0,111490.0,0.0010123]
[1760244043576,0.54736243,111500.0,111490.0,0.0213523]
[1760244043788,0.54736243,111500.0,111490.0,0.0373723]
[1760244043984,0.52037219,111500.0,111490.0,0.0373723]
[1760244044402,0.5473629,111500.0,111490.0,0.0373723]
[1760244045013,0.5473629,111500.0,111490.0,0.0010123]
[1760244045392,0.5473629,111500.0,111490.0,0.0213523]
[1760244045595,0.5473629,111500.0,111490.0,0.04409753]
[1760244045804,0.2063629,111500.0,111490.0,0.0373723]
[1760244046012,0.2063629,111500.0,111490.0,0.0683423]
[1760244046464,0.2063629,111500.0,111490.0,0.0373723]
[1760244046811,0.2063629,111500.0,111490.0,0.0683423]
[1760244047363,0.2063629,111500.0,111490.0,0.24773058]
[1760244047364,0.02699071,111500.0,111490.0,0.24773058]
[1760244047563,0.21649065,111510.0,111490.0,0.24773058]
[1760244047726,0.21649065,111510.0,111500.0,0.01602]
[1760244047912,0.55649065,111510.0,111500.0,0.2442994]
[1760244048130,0.37713454,111510.0,111500.0,0.24670219]
[1760244049097,0.55649065,111510.0,111500.0,0.24670219]
[1760244049717,0.37713454,111510.0,111500.0,0.24670219]
[1760244050127,0.55649065,111510.0,111500.0,0.24670219]
[1760244050878,0.55649065,111510.0,111500.0,0.24770219]
[1760244051295,0.55649065,111510.0,111500.0,0.06833]
[1760244051897,0.55649065,111510.0,111500.0,0.10605]
[1760244055550,0.55649065,111510.0,111500.0,0.07508]
[1760244055751,0.55649065,111510.0,111500.0,0.10605]
[1760244057581,0.55649065,111510.0,111500.0,0.12398721]
[1760244058526,0.55649065,111510.0,111500.0,0.3033594]
[1760244058761,0.55649065,111510.0,111500.0,0.28542219]
[1760244061317,0.55649065,111510.0,111500.0,0.10605]
[1760244065697,0.55649065,111510.0,111500.0,0.03872]
[1760244066512,0.58347655,111510.0,111500.0,0.03872]
[1760244067357,0.58347655,111510.0,111500.0,0.03772]
[1760244068956,0.58447655,111510.0,111500.0,0.03772]
[1760244069561,0.58547655,111510.0,111500.0,0.03772]
[1760244069791,0.62028028,111510.0,111500.0,0.03772]
[1760244070412,0.64363335,111510.0,111500.0,0.03772]
[1760244071006,0.51937219,111500.0,111490.0,0.0010123]
[1760244071218,0.54272526,111500.0,111490.0,0.0010123]
[1760244072050,0.56971706,111500.0,111490.0,0.0010123]
[1760244072261,0.62856513,111500.0,111490.0,1e-08]
[1760244072469,0.51942047,111470.0,111460.0,0.03772]
[1760244072686,0.51942047,111470.0,111460.0,0.03776997]
[1760244073127,0.54641552,111470.0,111460.0,0.03776997]
[1760244073586,0.56976859,111470.0,111460.0,0.03776997]
[1760244074217,0.56976859,111470.0,111460.0,0.03876997]
[1760244074845,0.54641552,111470.0,111460.0,0.03776997]
[1760244075264,0.54741552,111470.0,111460.0,0.03776997]
[1760244075483,0.54841552,111470.0,111460.0,0.03776997]
[1760244076778,0.54841552,111470.0,111460.0,0.05810997]
[1760244076996,0.54841552,111470.0,111460.0,0.07435997]
[1760244077645,0.54741552,111470.0,111460.0,0.10684997]
[1760244077849,0.54641552,111470.0,111460.0,0.10684997]
[1760244078068,0.54841552,111470.0,111460.0,0.10860498]
[1760244078477,0.54641552,111470.0,111460.0,0.10860498]
[1760244079519,0.54641552,111470.0,111460.0,0.07611498]
[1760244080199,0.54641552,111470.0,111460.0,0.03952498]
[1760244082590,0.54641552,111470.0,111460.0,0.05986498]
[1760244083007,0.54641552,111470.0,111460.0,0.07611498]
[1760244083421,0.54641552,111470.0,111460.0,0.03952498]
[1760244084541,0.54641552,111470.0,111460.0,0.07611498]
[1760244085853,0.54641552,111470.0,111460.0,0.12654863]
[1760244086070,0.17940437,111480.0,111460.0,0.30598519]